Cogmind - Beta 14 @@@ ROGUE MODE // 2024.09.12 @ 10:20:49 Player: BionicBot Result: Destroyed by G-50 Soldier with Heavy Laser Performance ------------- Evolutions (5) 2500 Regions Visited (6) 1200 Robots Destroyed (1) 5 Value Destroyed (7) 7 Prototype IDs (1) 20 Alien Tech Used (0) 0 Bonus (1325) 1325 TOTAL SCORE: 5057 Bonus ------- Pacifist 1325 Cogmind --------- Core Integrity 0/1000 Matter 6/300 Energy 99/100 System Corruption 4% Temperature Cool (27) Movement Core (50) Location -5/Factory Parts ------- > --- POWER (1) -------- (None) > --- PROPULSION (2) --- (None) > --- UTILITY (12) ----- Advanced Visual Processing Unit Enhanced Optical Array Enhanced Optical Array Signal Interpreter Improved Signal Interpreter > --- WEAPON (2) ------- (None) > --- INVENTORY (5) ---- Improved Hacking Suite Mass Driver Grenade Launcher Improved Datajack Carbide Saw Peak State ------------ > --- POWER ------------ (None) > --- PROPULSION ------- Cooled Cesium-ion Thruster Cooled Cesium-ion Thruster > --- UTILITY ---------- Improved Cryofiber Web Advanced Visual Processing Unit Enhanced Optical Array Signal Interpreter Improved Terrain Scanner > --- WEAPON ----------- Carbide Saw > --- INVENTORY -------- Enhanced Optical Array Grenade Launcher Improved Datajack Welding Torch [Rating: 35] Favorites ----------- Power None Propulsion Cooled Cesium-ion Thruster Flight Unit Cooled Cesium-ion Thruster Utility Signal Interpreter Device Improved Cryofiber Web Processor Signal Interpreter Weapon Carbide Saw Slashing Weapon Carbide Saw Special Melee Weapon Improved Datajack Build | -11 -10 -9 -8 -7 -6 -5 ------- Run | Yrd Mat Mat Mat Fac Fac Fac Slots Evolved 10 | . . 2 2 2 2 2 Power . | . . . . . . . Propulsion . | . . . . . . . Utility 10 | . . 2 2 2 2 2 Weapon . | . . . . . . . Parts Attached 15 | . 1 2 . 2 8 2 Power . | . . . . . . . Engine . | . . . . . . . Core . | . . . . . . . Reactor . | . . . . . . . Propulsion 5 | . . 1 . 1 2 1 Treads . | . . . . . . . Leg . | . . . . . . . Wheel . | . . . . . . . Hover . | . . . . . . . Flight 5 | . . 1 . 1 2 1 Utility 8 | . 1 1 . 1 4 1 Device 3 | . 1 . . . 2 . Storage . | . . . . . . . Processor 5 | . . 1 . 1 2 1 Hackware . | . . . . . . . Protection . | . . . . . . . Artifact . | . . . . . . . Weapon 2 | . . . . . 2 . Energy Gun . | . . . . . . . Energy Cannon . | . . . . . . . Ballistic Gun . | . . . . . . . Ballistic Cannon . | . . . . . . . Launcher . | . . . . . . . Special Weapon . | . . . . . . . Impact Weapon . | . . . . . . . Slashing Weapon 1 | . . . . . 1 . Piercing Weapon . | . . . . . . . Special Melee Weapon 1 | . . . . . 1 . Unidentified Prototypes 1 | . . . . . 1 . Parts Lost 7 | . . 2 . . 2 3 Power . | . . . . . . . Propulsion 4 | . . 1 . . 2 1 Utility 3 | . . 1 . . . 2 Weapon . | . . . . . . . Highest Loss Streak 2 | . . 2 . . 1 2 To Critical Strikes . | . . . . . . . Average Slot Usage (%) 30 | . 12 22 9 12 45 34 Flight 4 | . . 4 . 4 8 . Device 5 | . 12 6 . . 8 4 Processor 17 | . . 11 9 7 21 29 Slashing Weapon 1 | . . . . . 4 . Peak Build Rating 35 | . 1 3 1 8 35 26 Average Rating 16 | . . 1 1 3 27 21 On Entrance 4 | . . 1 1 1 8 21 Naked Turns 17 | . 17 . . . . . Heaviest Build 5 | . 1 1 . . 5 2 Greatest Support 12 | 3 3 4 3 6 12 6 Greatest Overweight (x) 1 | . . . . . 1 . Average Overweight (x) . | . . . . . . . Largest Inventory Capacity 5 | 5 5 5 5 5 5 5 Average Capacity 5 | 5 5 5 5 5 5 5 Most Carried 5 | . 3 2 2 3 5 5 Average Carried 3 | . 1 2 2 2 3 4 Final Capacity 5 | 5 5 5 5 5 5 5 Final Carried 5 | . 3 2 2 3 5 5 Class Distribution -------------------- 97% | Mutant Dominant Class ---------------- Mutant | -10/Materials Mutant | -9/Materials Mutant | -8/Materials Mutant | -7/Factory Mutant | -6/Factory Mutant | -5/Factory Resources | -11 -10 -9 -8 -7 -6 -5 ----------- Run | Yrd Mat Mat Mat Fac Fac Fac Matter Collected 20 | . . . . . 20 . Remotely . | . . . . . . . Salvage Created 20 | . . . . . 20 . Parts 2 | . . . . . 2 . Haulers Intercepted . | . . . . . . . Recyclers Shooed . | . . . . . . . Parts Field Recycled . | . . . . . . . Retrieved Matter . | . . . . . . . Parts Self-Destructed . | . . . . . . . Prevented . | . . . . . . . Kills | -11 -10 -9 -8 -7 -6 -5 ------- Run | Yrd Mat Mat Mat Fac Fac Fac Combat Hostiles Destroyed . | . . . . . . . Classes Destroyed 1 | . . . . . 1 . Tunneler 1 | . . . . . 1 . Best Kill Streak 1 | . . . . . 1 . Combat Bots Only . | . . . . . . . Max Kills in Single Turn 1 | . . . . . 1 . Gunslinging . | . . . . . . . Exploded . | . . . . . . . Melee . | . . . . . . . Uniques/NPCs Destroyed . | . . . . . . . Combat | -11 -10 -9 -8 -7 -6 -5 -------- Run | Yrd Mat Mat Mat Fac Fac Fac Hostile Shots Fired 296 | . 33 30 . . 128 105 Missed 153 | . 16 16 . . 77 44 Damage Taken 1992 | . 141 133 . . 589 1129 Core 1669 | . 130 80 . . 441 1018 Absorbed by Shields . | . . . . . . . Core Remaining (%) 79 | 100 48 80 100 100 48 . Volleys Fired . | . . . . . . . Largest . | . . . . . . . Hottest . | . . . . . . . Shots Fired . | . . . . . . . Gun . | . . . . . . . Cannon . | . . . . . . . Launcher . | . . . . . . . Special . | . . . . . . . Kinetic . | . . . . . . . Thermal . | . . . . . . . Explosive . | . . . . . . . Electromagnetic . | . . . . . . . Robot Hit Streak . | . . . . . . . Robot Miss Streak . | . . . . . . . Penetration Max . | . . . . . . . Secondary Targets . | . . . . . . . Shots Hit Robots 6 | . . . . . 6 . Core Hits 3 | . 1 . . . 2 . Critical Kills . | . . . . . . . Critical Parts Destroyed . | . . . . . . . Critical Strikes . | . . . . . . . Melee Attacks 7 | . . . . . 7 . Impact . | . . . . . . . Slashing 5 | . . . . . 5 . Piercing . | . . . . . . . Sneak Attacks 4 | . . . . . 4 . Combat Hostiles 2 | . . . . . 2 . Follow-up Attacks . | . . . . . . . Damage Inflicted 128 | . 8 . . . 120 . Guns . | . . . . . . . Cannons . | . . . . . . . Explosions . | . . . . . . . Melee 115 | . . . . . 115 . Ramming 13 | . 8 . . . 5 . Kinetic . | . . . . . . . Thermal . | . . . . . . . Explosive . | . . . . . . . Electromagnetic . | . . . . . . . Impact . | . . . . . . . Slashing 115 | . . . . . 115 . Piercing . | . . . . . . . Highest Corruption 4 | . . . . . 1 4 Average Corruption 2 | . . . . . 1 3 Corruption Purged . | . . . . . . . Corruption Blocked . | . . . . . . . Effects 3 | . . . . . 1 2 Message Errors 1 | . . . . . . 1 Matter Fused 1 | . . . . . 1 . Data Loss (minor) 1 | . . . . . . 1 Overload Shots . | . . . . . . . Overflow Damage 18 | . . . . . 18 . Projectiles . | . . . . . . . Explosions . | . . . . . . . Melee 18 | . . . . . 18 . Knockbacks . | . . . . . . . Impact . | . . . . . . . Kinetic . | . . . . . . . Secondary . | . . . . . . . Self-Inflicted Damage 5 | . 3 . . . 2 . Shots . | . . . . . . . Rammed 3 | . 2 . . . 1 . Targets Rammed 3 | . 2 . . . 1 . Kicked . | . . . . . . . Crushed . | . . . . . . . Highest Temperature . | . . . . . . . Average Temperature . | . . . . . . . Received Heat Transfer 465 | . . 36 . . 192 237 Siege Activations . | . . . . . . . Robots Corrupted . | . . . . . . . Combat Hostiles . | . . . . . . . Parts Fried . | . . . . . . . Impact Corruptions . | . . . . . . . Robots Melted . | . . . . . . . Combat Hostiles . | . . . . . . . Parts Melted . | . . . . . . . Heat Transferred . | . . . . . . . Parts Sabotaged . | . . . . . . . Parts Stolen . | . . . . . . . Parts Stripped . | . . . . . . . Power Chain Reactions . | . . . . . . . Alert | -11 -10 -9 -8 -7 -6 -5 ------- Run | Yrd Mat Mat Mat Fac Fac Fac Peak Influence 528 | . 15 135 71 92 354 528 Initial 168 | . . 5 56 32 44 168 Average 155 | . 8 44 69 67 180 281 Maximum Alert Level 2 | . . . . . 1 2 Low Security (%) 71 | 100 100 100 100 100 61 41 Level 1 23 | . . . . . 38 38 Level 2 5 | . . . . . . 20 Level 3 . | . . . . . . . Level 4 . | . . . . . . . Level 5 . | . . . . . . . High Security . | . . . . . . . Max Security . | . . . . . . . Squads Dispatched 5 | . . 1 . . 3 1 Investigation 1 | . . 1 . . . . Extermination 2 | . . . . . 1 1 Reinforcement 2 | . . . . . 2 . Assault . | . . . . . . . Garrison . | . . . . . . . Intercept . | . . . . . . . Searches Triggered . | . . . . . . . Construction Impeded . | . . . . . . . Haulers Reinforced . | . . . . . . . Active Scanning Responses . | . . . . . . . Cargo Convoy Interrupts . | . . . . . . . Stealth | -11 -10 -9 -8 -7 -6 -5 --------- Run | Yrd Mat Mat Mat Fac Fac Fac Distress Signals 6 | . 1 1 . . 1 3 Communications Jammed . | . . . . . . . Distress Signals . | . . . . . . . Times Spotted 71 | . 4 12 1 2 24 28 Peak Tracking Total 15 | . 4 11 1 2 6 15 Tactical Retreats 13 | . 1 2 . 1 4 5 Traps | -11 -10 -9 -8 -7 -6 -5 ------- Run | Yrd Mat Mat Mat Fac Fac Fac Traps Triggered . | . . . . . . . Indirectly . | . . . . . . . Trap Hack Attempts . | . . . . . . . Triggered . | . . . . . . . Disarmed . | . . . . . . . Reprogrammed . | . . . . . . . Reused . | . . . . . . . Traps Extracted . | . . . . . . . Installed . | . . . . . . . Triggered . | . . . . . . . Machines | -11 -10 -9 -8 -7 -6 -5 ---------- Run | Yrd Mat Mat Mat Fac Fac Fac Machines Disabled . | . . . . . . . Max in Single Turn . | . . . . . . . Machines Repaired . | . . . . . . . Machines Dismantled . | . . . . . . . Machines Sabotaged . | . . . . . . . Overloaded Fab Kills . | . . . . . . . Hacking | -11 -10 -9 -8 -7 -6 -5 --------- Run | Yrd Mat Mat Mat Fac Fac Fac Machines Accessed 5 | . . 1 . 2 2 . Terminals 5 | . . 1 . 2 2 . Fabricators . | . . . . . . . Repair Stations . | . . . . . . . Recycling Units . | . . . . . . . Scanalyzers . | . . . . . . . Garrison Access . | . . . . . . . Total Hacks 9 | . . 5 . 2 2 . Successful . | . . . . . . . Failed 9 | . . 5 . 2 2 . Catastrophic 3 | . . 1 . 2 . . Database Lockouts . | . . . . . . . Manual 9 | . . 5 . 2 2 . Terminals 9 | . . 5 . 2 2 . Fabricators . | . . . . . . . Repair Stations . | . . . . . . . Recycling Units . | . . . . . . . Scanalyzers . | . . . . . . . Garrison Access . | . . . . . . . Terminal Hacks . | . . . . . . . Fabricator Hacks . | . . . . . . . Repair Station Hacks . | . . . . . . . Recycling Unit Hacks . | . . . . . . . Scanalyzer . | . . . . . . . Garrison Access Hacks . | . . . . . . . Unauthorized Hacks . | . . . . . . . Terminals . | . . . . . . . Fabricators . | . . . . . . . Repair Stations . | . . . . . . . Recycling Units . | . . . . . . . Scanalyzers . | . . . . . . . Garrison Access . | . . . . . . . Data Cores Recovered . | . . . . . . . Used . | . . . . . . . Hacking Detections 3 | . . 1 . 1 1 . Full Trace Events 1 | . . 1 . . . . Feedback Events . | . . . . . . . Feedback Blocked . | . . . . . . . Robot Schematics Acquired . | . . . . . . . Robots Built . | . . . . . . . Authchips . | . . . . . . . Time . | . . . . . . . Total Robot Build Rating . | . . . . . . . Part Schematics Acquired . | . . . . . . . Parts Built . | . . . . . . . Authchips . | . . . . . . . Time . | . . . . . . . Total Part Build Rating . | . . . . . . . Parts Repaired . | . . . . . . . Time . | . . . . . . . Parts Recycled . | . . . . . . . Recycled Matter . | . . . . . . . Retrieved Matter . | . . . . . . . Retrieved Components . | . . . . . . . Parts Scanalyzed . | . . . . . . . Part Schematics Acquired . | . . . . . . . Parts Damaged . | . . . . . . . Bothacking | -11 -10 -9 -8 -7 -6 -5 ------------ Run | Yrd Mat Mat Mat Fac Fac Fac Used RIF Installer . | . . . . . . . Robots Hacked . | . . . . . . . Non-combat . | . . . . . . . Combat . | . . . . . . . Robot Hacks Applied . | . . . . . . . Relay Couplers Released . | . . . . . . . Fabnet Peak Effective % . | . . . . . . . Robots Rewired 1 | . . . . . 1 . Allies Hacked . | . . . . . . . Hacks Repelled . | . . . . . . . Allies | -11 -10 -9 -8 -7 -6 -5 -------- Run | Yrd Mat Mat Mat Fac Fac Fac Total Allies 1 | . . . . . 1 . Largest Group 1 | . . . . . 1 . Highest-Rated Group 25 | . . . . . 25 . Highest-Rated Ally 25 | . . . . . 25 . Total Orders . | . . . . . . . Ally Attacks 11 | . . . . . 11 . Total Damage 177 | . . . . . 177 . Kills 2 | . . . . . 2 . Allies Corrupted . | . . . . . . . Allies Melted . | . . . . . . . Intel | -11 -10 -9 -8 -7 -6 -5 ------- Run | Yrd Mat Mat Mat Fac Fac Fac Robot Analysis Total . | . . . . . . . Derelict Logs Recovered . | . . . . . . . Drone Launches . | . . . . . . . Drone Recoveries . | . . . . . . . Exploration | -11 -10 -9 -8 -7 -6 -5 ------------- Run | Yrd Mat Mat Mat Fac Fac Fac Turns Passed 1006 | 9 73 85 48 180 352 259 Spaces Moved 2219 | 18 132 175 96 408 875 515 Core 958 | 18 132 122 96 124 4 462 Treads . | . . . . . . . Legs . | . . . . . . . Wheels . | . . . . . . . Hover . | . . . . . . . Flight 1261 | . . 53 . 284 871 53 Fastest Speed 32 | 50 50 40 50 40 32 40 Average Speed 42 | 50 50 46 50 43 36 48 Slowest Speed 100 | 50 50 50 50 50 100 50 Overloaded Moves . | . . . . . . . Propulsion Burnouts . | . . . . . . . Robots Hopped 14 | . . 2 . 1 10 1 Cave-ins Triggered . | . . . . . . . Exploration Rate (%) 19 | 3 27 25 14 13 34 22 Regions Visited 6 Branch Regions . Pre-discovered Areas . | . . . . . . . Known Exits Taken 4 | . . 1 1 1 1 . Unknown Exits Taken 2 | 1 1 . . . . . Scrap Searched . | . . . . . . . Spaces Dug . | . . . . . . . Terrain Destroyed . | . . . . . . . Melee . | . . . . . . . Projectile . | . . . . . . . AOE . | . . . . . . . Terrain Rammed . | . . . . . . . Walls Destroyed . | . . . . . . . Machines Disabled . | . . . . . . . Actions | -11 -10 -9 -8 -7 -6 -5 --------- Run | Yrd Mat Mat Mat Fac Fac Fac Total 2240 | 17 137 174 95 409 887 521 Wait 3 | . . . . . 3 . Move 2187 | 17 131 171 95 405 855 513 Hop 13 | . . 1 . 1 10 1 Pick Up 9 | . 3 . . 1 2 3 Fast Attach 10 | . 1 1 . 2 5 1 Attach 3 | . . 1 . . 1 1 Detach 1 | . . . . . 1 . Swap 2 | . . . . . 2 . Drop 3 | . . . . . 1 2 Fire . | . . . . . . . Melee 7 | . . . . . 7 . Ram 2 | . 2 . . . . . Kick . | . . . . . . . Crush . | . . . . . . . Escape Stasis . | . . . . . . . Rewire . | . . . . . . . Trap . | . . . . . . . Miscellaneous . | . . . . . . . Route ------- -11/Scrapyard -10/Materials (discovered 2 exits: *Mat / [*Min]) -9/Materials (discovered 2 exits: *Mat / *Min) -8/Materials -7/Factory -6/Factory (discovered 3 exits: *Fac / *Low x2) -5/Factory (discovered 1 exit: *Ext) History --------- Turn | Location | Event 3 | -11/Scrapyard | Discovered new exit (range 15) 10 | -11/Scrapyard | Entered Materials 34 | -10/Materials | Discovered new exit (range 15) 75 | -10/Materials | Discovered new exit (range 15) 80 | -10/Materials | Core integrity fell below 50% 83 | -10/Materials | Entered another Materials area 83 | -9/Materials | Evolved 2 slots: Utility x2 91 | -9/Materials | Discovered new exit (range 15) 98 | -9/Materials | Identified exit to Mines 160 | -9/Materials | Discovered new exit (range 15) 167 | -9/Materials | Identified exit to Materials 168 | -9/Materials | Entered another Materials area 168 | -8/Materials | Evolved 2 slots: Utility x2 209 | -8/Materials | Discovered new exit (range 15) 216 | -8/Materials | Identified exit to Factory 216 | -8/Materials | Entered Factory 216 | -7/Factory | Evolved 2 slots: Utility x2 300 | -7/Factory | Build established: Mutant 394 | -7/Factory | Discovered new exit (range 5) 395 | -7/Factory | Identified exit to Factory 396 | -7/Factory | Entered another Factory area 396 | -6/Factory | Evolved 2 slots: Utility x2 475 | -6/Factory | Discovered new exit (range 6) 477 | -6/Factory | Identified exit to Lower Caves 627 | -6/Factory | Discovered exit to Lower Caves (range 22) 718 | -6/Factory | Spotted B-75 Beast 742 | -6/Factory | Discovered new exit (range 14) 748 | -6/Factory | Identified exit to Factory 748 | -6/Factory | Entered another Factory area 748 | -5/Factory | Evolved 2 slots: Utility x2 859 | -5/Factory | Discovered new exit (range 21) 869 | -5/Factory | Identified exit to Extension 881 | -5/Factory | Core integrity fell below 50% 931 | -5/Factory | Core integrity fell below 20% 966 | -5/Factory | Spotted B-75 Beast 1007 | -5/Factory | Destroyed by G-50 Soldier with Heavy Laser Last Messages --------------- 00909_ U-05 Engineer works on Matter Pump. 00910_ W-25 Informer sends out distress signal. 00911_ K-01 Serf cleans the Nuclear Reactor. 00911_ K-01 Serf collects debris. 00914_ U-05 Engineer works on Matter Pump. 00924_ C-30 ARC bursts open, deploying its payload. 00924_ G-67 Veteran unfolds itself. 00924_ G-50 Soldier unfolds itself. 00936_ System corrupted: Component data lost. 00944_ Penetrated by Slug. 00952_ K-01 Serf cleans the Nuclear Reactor. 00954_ K-01 Serf cleans the Terminal. 00981_ Acquired Nuclear Pulse Thruster. 00983_ Dropped Carbide Saw. 00983_ Dropped Welding Torch. 00984_ Acquired Imp. Hacking Suite. 00985_ Acquired Carbide Saw. 00998_ ALERT: Rogue bot located, Programmers report to Factory Zone 3N. 01006_ Nuclear Pulse Thruster destroyed. 01007_ W-25 Informer sends out distress signal. Map ----- +----------------------------------------------------+ | | | | | ?????????????????????????????????????????????????? | | ?????????????????????????????????????????????????? | | ?????????????????????????????????????????????????? | | ?????????????????????????????????????????????????? | | ?????????????????????????????????????????????????? | | ?????????????????????????????????????????????????? | | ?????????????????????????????????????????????????? | | ?????######???######?????????????????????????????? | | ???#??= #??? #?????????????????????????????? | | ???# ? #?? #?????????????????????????????? | | ???#*?? #?? #?????????????????????????????? | | ???#!!? #? #?????????????????????????????? | | ???# ? #? """#?????????????????????????????? | | ???? # """#?????????????????????????????? | | ######/##+# R"#??????????????????????? ?????? | | + """#?????????????????????! ?????? | | ######## # #??????????????????? #????? | | #??????# ###############+##+######## ?????? | | #?????## ## ! # ????????? | | #?????# # ""# g #??????????? | | #?????+ + T"# g g #??????????? | | #?????# ! # ! ""# g ????????????? | | ##?????## ## + #????????????????? | | ????????# ## """" "" #@ #????????????????? | | ????????# ## """" "" + #????????????????? | | ????????# ## """" """ # #????????????????? | | ????????# ## """" """ # #????????????????? | | ????????+ + """" """ # #????????????????? | | ????????# ## """" # #????????????????? | | ????????# ## # #????????????????? | | ????????+ ###############k k #????????????????? | | ????????# #?????????????+ +????????????????? | | ????????# #?????????????# #????????????????? | | ????????? ??????????????# #????????????????? | | ????????? ??????????????# #????????????????? | | ????????? ??????????????? #????????????????? | | ????????? ??????????????? #????????????????? | | ?????????+??????????????? #????????????????? | | ????????????????????????? k #????????????????? | | ????????????????????????? #????????????????? | | ?????????????????????????w A????????????????? | | ????????????????????????? #????????????????? | | ????????????????????????? #????????????????? | | ????????????????????????? ???????????????????? | | ????????????????????????? ?????????????????????? | | ?????????????????????????????????????????????????? | | ?????????????????????????????????????????????????? | | ?????????????????????????????????????????????????? | +----------------------------------------------------+ Best States ------------- Heat Dissipation 40 Energy Generation 5 Energy Capacity 100 Matter Stores 100 Matter Capacity 300 Sight Range 22 Terrain Scan Range 16 Terrain Scan Density 10 Base Temperature (-) 150 Evasion (%) 63 Item Schematics ----------------- None Robot Schematics ------------------ None Fabricated ------------ Nothing Alien Tech Used ----------------- None Achievements -------------- None Challenges ------------ None Game ------ Seed ScanSlugReplicator Manual? 0 Play Time 00:20:35 Cumulative 115.1 hours Start 2024.09.12 @ 10:03:33 End 2024.09.12 @ 10:20:49 Sessions 1 Manual Loads 0 Difficulty Rogue Special Mode None Game No. 86 Rogue 86 Adventurer 0 Explorer 0 Win Type - Total 3 Types 3/0/0/0/0/0/0/0/0 Lore% 38 Gallery% 50 Achievement% 46 Wizard Run 0 Options --------- Layout 0 ASCII 0 Keyboard 1 Movement Numpad Keybinds 0 Fullscreen 1 Font 18/SmallcapsGlow Map View 76x50 Zoom Use 0% Tactical HUD 1 Map Filters NONE Filters NONE Steam 1 RUN: e73c5b2f-55d7-4daa-adeb-e396b61dc03f